[Event "*** Titled Tuesday Blitz"]
[Site "Chess.com"]
[Date "2019.07.02"]
[Round "3"]
[White "KestutisLabeckas"]
[Black "G_Threepwood"]
[Result "0-1"]
[WhiteElo "2351"]
[BlackElo "2443"]
[TimeControl "180+2"]
[EndTime "13:38:54 PDT"]
[Termination "G_Threepwood won on time"]

1. d4 {[%clk 0:03:01.9]} 1... Nf6 {[%clk 0:03:00.4]} 2. c4 {[%clk 0:03:03]} 2...
c5 {[%clk 0:03:01.9]} 3. e3 {[%clk 0:03:03.5]} 3... g6 {[%clk 0:03:02.1]} 4. Nf3
{[%clk 0:03:04.6]} 4... Bg7 {[%clk 0:03:03.6]} 5. b3 {[%clk 0:03:05.4]} 5...
cxd4 {[%clk 0:03:02.7]} 6. exd4 {[%clk 0:03:06.3]} 6... d5 {[%clk 0:03:03.1]} 7.
Bb2 {[%clk 0:03:07]} 7... O-O {[%clk 0:03:04.4]} 8. Be2 {[%clk 0:03:08.1]} 8...
Nc6 {[%clk 0:03:05.9]} 9. O-O {[%clk 0:03:08.8]} 9... b6 {[%clk 0:03:07.5]} 10.
Nc3 {[%clk 0:03:08.5]} 10... Bb7 {[%clk 0:03:08.7]} 11. Ne5 {[%clk 0:03:03.9]}
11... Rc8 {[%clk 0:02:52.1]} 12. cxd5 {[%clk 0:02:51.9]} 12... Nxd5 {[%clk
0:02:51.5]} 13. Nxd5 {[%clk 0:02:49.3]} 13... Qxd5 {[%clk 0:02:10.7]} 14. Bc4
{[%clk 0:02:45.3]} 14... Qd6 {[%clk 0:02:02]} 15. Re1 {[%clk 0:02:06.8]} 15...
Nxe5 {[%clk 0:01:40.2]} 16. dxe5 {[%clk 0:02:03.2]} 16... Qc6 {[%clk 0:01:27.9]}
17. Qg4 {[%clk 0:01:44.1]} 17... b5 {[%clk 0:01:18.3]} 18. Bf1 {[%clk
0:01:34.5]} 18... e6 {[%clk 0:01:17.7]} 19. Rac1 {[%clk 0:01:30.2]} 19... Qb6
{[%clk 0:01:18.6]} 20. Bd4 {[%clk 0:01:24.6]} 20... Qa5 {[%clk 0:01:18.2]} 21.
Qe2 {[%clk 0:01:17.2]} 21... Rfd8 {[%clk 0:01:14]} 22. Rxc8 {[%clk 0:01:15.9]}
22... Bxc8 {[%clk 0:01:11.4]} 23. Rd1 {[%clk 0:00:48.1]} 23... a6 {[%clk
0:01:06.3]} 24. Bc3 {[%clk 0:00:41.2]} 24... Qc7 {[%clk 0:01:07]} 25. Rxd8+
{[%clk 0:00:39.5]} 25... Qxd8 {[%clk 0:01:08.9]} 26. Qd3 {[%clk 0:00:38.3]}
26... Qc7 {[%clk 0:00:59.1]} 27. f4 {[%clk 0:00:35.9]} 27... Bb7 {[%clk
0:01:00.1]} 28. Qd4 {[%clk 0:00:26.8]} 28... Bf8 {[%clk 0:00:58.9]} 29. Bb4
{[%clk 0:00:18.4]} 29... Bxb4 {[%clk 0:00:58.9]} 30. Qxb4 {[%clk 0:00:20.3]}
30... Qb6+ {[%clk 0:00:59.6]} 31. Kh1 {[%clk 0:00:20.4]} 31... Qf2 {[%clk
0:01:00.3]} 0-1

[Event "*** Titled Tuesday Blitz"]
[Site "Chess.com"]
[Date "2019.07.02"]
[Round "3"]
[White "RzayevB"]
[Black "Bad4life"]
[Result "1-0"]
[WhiteElo "2594"]
[BlackElo "2366"]
[TimeControl "180+2"]
[EndTime "13:38:55 PDT"]
[Termination "RzayevB won by resignation"]

1. e4 {[%clk 0:03:01.9]} 1... c5 {[%clk 0:02:58.9]} 2. Nf3 {[%clk 0:03:01.6]}
2... d6 {[%clk 0:02:59.8]} 3. Nc3 {[%clk 0:03:02.7]} 3... Nf6 {[%clk 0:03:00.9]}
4. e5 {[%clk 0:03:03.6]} 4... dxe5 {[%clk 0:03:01.7]} 5. Nxe5 {[%clk 0:03:05.5]}
5... e6 {[%clk 0:03:03.3]} 6. Bb5+ {[%clk 0:03:05.5]} 6... Nfd7 {[%clk
0:03:04.9]} 7. d4 {[%clk 0:03:05.8]} 7... cxd4 {[%clk 0:03:03.5]} 8. Qxd4 {[%clk
0:03:07.7]} 8... a6 {[%clk 0:02:59.5]} 9. Ba4 {[%clk 0:03:00.7]} 9... Qc7 {[%clk
0:02:56.1]} 10. Bf4 {[%clk 0:03:00.2]} 10... Qc5 {[%clk 0:02:47]} 11. O-O-O
{[%clk 0:02:24]} 11... b5 {[%clk 0:02:39.6]} 12. Bb3 {[%clk 0:02:22.5]} 12...
Qxd4 {[%clk 0:02:36.8]} 13. Rxd4 {[%clk 0:02:24.4]} 13... Bc5 {[%clk 0:02:35.8]}
14. Rd2 {[%clk 0:02:19.4]} 14... Bb7 {[%clk 0:02:33.4]} 15. Rhd1 {[%clk
0:02:16.8]} 15... Bc8 {[%clk 0:02:10.2]} 16. Ne4 {[%clk 0:02:09.5]} 16... Bb4
{[%clk 0:01:53.6]} 17. c3 {[%clk 0:02:05.2]} 17... Be7 {[%clk 0:01:48.9]} 18.
Bg5 {[%clk 0:01:52.9]} 18... f6 {[%clk 0:01:33]} 19. Nxd7 {[%clk 0:01:49.2]}
19... Bxd7 {[%clk 0:01:15.4]} 20. Bf4 {[%clk 0:01:48.5]} 20... e5 {[%clk
0:01:06.2]} 21. Be3 {[%clk 0:01:47.3]} 21... Bc6 {[%clk 0:00:57.1]} 22. Nd6+
{[%clk 0:01:45]} 22... Bxd6 {[%clk 0:00:55.7]} 23. Rxd6 {[%clk 0:01:46.9]} 23...
Bd7 {[%clk 0:00:37.4]} 24. Bd5 {[%clk 0:01:45.3]} 24... Bg4 {[%clk 0:00:28.1]}
25. Bxa8 {[%clk 0:01:38.5]} 25... Bxd1 {[%clk 0:00:28.6]} 26. Rxd1 {[%clk
0:01:37.3]} 26... O-O {[%clk 0:00:26]} 27. Bd5+ {[%clk 0:01:35.1]} 27... Kh8
{[%clk 0:00:26.9]} 28. Bc5 {[%clk 0:01:37]} 28... Rc8 {[%clk 0:00:27.5]} 29. Be6
{[%clk 0:01:38]} 29... Re8 {[%clk 0:00:26.8]} 30. Bf7 {[%clk 0:01:38.5]} 30...
Rc8 {[%clk 0:00:27.5]} 31. Be6 {[%clk 0:01:30.8]} 31... Re8 {[%clk 0:00:27.7]}
32. Bb6 {[%clk 0:01:32.3]} 32... g6 {[%clk 0:00:21.4]} 33. Rd8 {[%clk
0:01:32.3]} 33... Rxd8 {[%clk 0:00:23]} 34. Bxd8 {[%clk 0:01:33.9]} 34... Kg7
{[%clk 0:00:24.9]} 35. Bc8 {[%clk 0:01:32.7]} 35... Kf7 {[%clk 0:00:21.5]} 36.
Bc7 {[%clk 0:01:33.2]} 36... Nc6 {[%clk 0:00:23.2]} 37. Bxa6 {[%clk 0:01:34.3]}
37... b4 {[%clk 0:00:23.4]} 38. Bb7 {[%clk 0:01:33.5]} 38... Ne7 {[%clk
0:00:21.2]} 39. cxb4 {[%clk 0:01:34]} 39... Ke6 {[%clk 0:00:22.9]} 40. a4 {[%clk
0:01:34.7]} 40... Kd7 {[%clk 0:00:24.5]} 41. Bb8 {[%clk 0:01:35.5]} 41... Nf5
{[%clk 0:00:25.8]} 42. a5 {[%clk 0:01:36.1]} 42... Nd4 {[%clk 0:00:27.2]} 43. a6
{[%clk 0:01:37]} 1-0

[Event "*** Titled Tuesday Blitz"]
[Site "Chess.com"]
[Date "2019.07.02"]
[Round "3"]
[White "lavr92"]
[Black "SoltaniciR"]
[Result "1/2-1/2"]
[WhiteElo "2617"]
[BlackElo "2558"]
[TimeControl "180+2"]
[EndTime "13:38:58 PDT"]
[Termination "Game drawn by repetition"]

1. d4 {[%clk 0:03:00.1]} 1... Nf6 {[%clk 0:02:59.6]} 2. c4 {[%clk 0:03:01.3]}
2... Nc6 {[%clk 0:03:00.8]} 3. Nf3 {[%clk 0:02:58.2]} 3... e6 {[%clk 0:03:01.8]}
4. g3 {[%clk 0:02:56.5]} 4... Bb4+ {[%clk 0:03:02.2]} 5. Nc3 {[%clk 0:02:57.3]}
5... d6 {[%clk 0:03:01.3]} 6. Bg2 {[%clk 0:02:57.1]} 6... O-O {[%clk 0:03:00.9]}
7. O-O {[%clk 0:02:57.8]} 7... Bxc3 {[%clk 0:03:02]} 8. bxc3 {[%clk 0:02:58.6]}
8... e5 {[%clk 0:03:02.6]} 9. Bg5 {[%clk 0:02:49.6]} 9... h6 {[%clk 0:03:02.6]}
10. Bxf6 {[%clk 0:02:50.2]} 10... Qxf6 {[%clk 0:03:03.4]} 11. e3 {[%clk
0:02:45.9]} 11... Bg4 {[%clk 0:02:57.4]} 12. h3 {[%clk 0:02:46.1]} 12... Bh5
{[%clk 0:02:58.5]} 13. g4 {[%clk 0:02:42.3]} 13... Bg6 {[%clk 0:02:59.2]} 14.
Nd2 {[%clk 0:02:40.8]} 14... Rfe8 {[%clk 0:02:48]} 15. f4 {[%clk 0:01:58.2]}
15... exf4 {[%clk 0:02:41.4]} 16. exf4 {[%clk 0:01:58.2]} 16... Bd3 {[%clk
0:02:41.7]} 17. Rf2 {[%clk 0:01:59.1]} 17... Re3 {[%clk 0:02:24.8]} 18. Qb3
{[%clk 0:01:31]} 18... Nxd4 {[%clk 0:01:51]} 19. Qxb7 {[%clk 0:01:01]} 19...
Rae8 {[%clk 0:01:50.1]} 20. g5 {[%clk 0:00:59.1]} 20... hxg5 {[%clk 0:01:32.2]}
21. fxg5 {[%clk 0:00:57.5]} 21... Qxg5 {[%clk 0:00:46.5]} 22. cxd4 {[%clk
0:00:52.7]} 22... Re2 {[%clk 0:00:47.3]} 23. Qf3 {[%clk 0:00:29.6]} 23... Rxf2
{[%clk 0:00:44.3]} 24. Qxf2 {[%clk 0:00:30.9]} 24... Re2 {[%clk 0:00:45.5]} 25.
Nf3 {[%clk 0:00:32.2]} 25... Qg6 {[%clk 0:00:20.9]} 26. Nh4 {[%clk 0:00:32.9]}
26... Qg5 {[%clk 0:00:22.1]} 27. Nf3 {[%clk 0:00:33.8]} 27... Qg6 {[%clk
0:00:23.2]} 28. Nh4 {[%clk 0:00:30.7]} 28... Qg5 {[%clk 0:00:20.6]} 29. Nf3
{[%clk 0:00:31.3]} 1/2-1/2

[Event "*** Titled Tuesday Blitz"]
[Site "Chess.com"]
[Date "2019.07.02"]
[Round "3"]
[White "Cruel_Yaro"]
[Black "BlackBoarder"]
[Result "1-0"]
[WhiteElo "2750"]
[BlackElo "2487"]
[TimeControl "180+2"]
[EndTime "13:38:59 PDT"]
[Termination "Cruel_Yaro won on time"]

1. e4 {[%clk 0:03:01.9]} 1... e6 {[%clk 0:02:57.2]} 2. d4 {[%clk 0:03:01.3]}
2... d5 {[%clk 0:02:55.3]} 3. e5 {[%clk 0:03:02.2]} 3... c5 {[%clk 0:02:56.1]}
4. c3 {[%clk 0:03:03.6]} 4... Qa5 {[%clk 0:02:54.7]} 5. a3 {[%clk 0:02:48.5]}
5... Bd7 {[%clk 0:02:45.4]} 6. Nf3 {[%clk 0:02:47.6]} 6... Nc6 {[%clk 0:02:42]}
7. dxc5 {[%clk 0:02:31]} 7... Qc7 {[%clk 0:02:41.6]} 8. Bf4 {[%clk 0:02:20.9]}
8... Bxc5 {[%clk 0:02:29.8]} 9. Bd3 {[%clk 0:02:20.5]} 9... Nge7 {[%clk
0:02:30.4]} 10. b4 {[%clk 0:02:18.1]} 10... Bb6 {[%clk 0:02:30.8]} 11. Qe2
{[%clk 0:02:16.8]} 11... Ng6 {[%clk 0:02:31.4]} 12. Bg3 {[%clk 0:02:17.4]} 12...
a6 {[%clk 0:02:26.1]} 13. O-O {[%clk 0:02:17.5]} 13... O-O {[%clk 0:02:20.5]}
14. Nbd2 {[%clk 0:02:17.1]} 14... Na7 {[%clk 0:02:02.4]} 15. c4 {[%clk
0:02:16.7]} 15... dxc4 {[%clk 0:01:56.7]} 16. Nxc4 {[%clk 0:02:17.3]} 16... Bb5
{[%clk 0:01:57.1]} 17. a4 {[%clk 0:02:13.3]} 17... Bxc4 {[%clk 0:01:56.5]} 18.
Bxc4 {[%clk 0:02:15.2]} 18... Qe7 {[%clk 0:01:52.2]} 19. b5 {[%clk 0:02:13.4]}
19... a5 {[%clk 0:01:32.4]} 20. Bd3 {[%clk 0:02:10.8]} 20... Bc5 {[%clk
0:01:23.2]} 21. h4 {[%clk 0:02:06.2]} 21... h6 {[%clk 0:00:34.8]} 22. h5 {[%clk
0:02:00]} 22... Nh8 {[%clk 0:00:36]} 23. Bh4 {[%clk 0:01:45.4]} 23... Qc7 {[%clk
0:00:25.2]} 24. Qe4 {[%clk 0:01:42.8]} 24... g6 {[%clk 0:00:24.6]} 25. Bf6
{[%clk 0:01:42.8]} 25... Nc8 {[%clk 0:00:15.1]} 26. Rac1 {[%clk 0:01:40.2]}
26... Ne7 {[%clk 0:00:16.2]} 27. b6 {[%clk 0:01:37.4]} 27... Qxb6 {[%clk
0:00:12.4]} 28. Rb1 {[%clk 0:01:34.9]} 28... Qc6 {[%clk 0:00:07.8]} 29. Rxb7
{[%clk 0:01:34.8]} 29... Qxe4 {[%clk 0:00:07.7]} 30. Bxe4 {[%clk 0:01:35.7]}
30... Nd5 {[%clk 0:00:04.6]} 31. Bxd5 {[%clk 0:01:29]} 31... exd5 {[%clk
0:00:05.6]} 32. e6 {[%clk 0:01:30]} 32... Rfb8 {[%clk 0:00:02.9]} 33. Rfb1
{[%clk 0:01:28.6]} 33... Rxb7 {[%clk 0:00:04.2]} 34. Rxb7 {[%clk 0:01:29.3]}
34... gxh5 {[%clk 0:00:02.9]} 35. Ne5 {[%clk 0:01:28.1]} 1-0

[Event "*** Titled Tuesday Blitz"]
[Site "Chess.com"]
[Date "2019.07.02"]
[Round "3"]
[White "WPWPWP-2015"]
[Black "Alopekos"]
[Result "1-0"]
[WhiteElo "2390"]
[BlackElo "2451"]
[TimeControl "180+2"]
[EndTime "13:39:02 PDT"]
[Termination "WPWPWP-2015 won by resignation"]

1. e4 {[%clk 0:02:37.8]} 1... c5 {[%clk 0:02:57.8]} 2. Nf3 {[%clk 0:02:38]} 2...
e6 {[%clk 0:02:49.4]} 3. d4 {[%clk 0:02:38.1]} 3... cxd4 {[%clk 0:02:51.3]} 4.
Nxd4 {[%clk 0:02:39.3]} 4... Nf6 {[%clk 0:02:52.9]} 5. Nc3 {[%clk 0:02:39.5]}
5... Bb4 {[%clk 0:02:54.4]} 6. e5 {[%clk 0:02:40.3]} 6... Nd5 {[%clk 0:02:55.7]}
7. Bd2 {[%clk 0:02:39.7]} 7... Nxc3 {[%clk 0:02:56.4]} 8. bxc3 {[%clk
0:02:40.3]} 8... Be7 {[%clk 0:02:58.1]} 9. Qg4 {[%clk 0:02:40.3]} 9... O-O
{[%clk 0:02:59]} 10. Bd3 {[%clk 0:02:40.1]} 10... d6 {[%clk 0:02:59.9]} 11. Qe4
{[%clk 0:02:34.7]} 11... g6 {[%clk 0:02:59.5]} 12. f4 {[%clk 0:02:34.2]} 12...
Nd7 {[%clk 0:02:47.7]} 13. Nf3 {[%clk 0:02:26.1]} 13... Qb6 {[%clk 0:02:31.8]}
14. h4 {[%clk 0:02:10.6]} 14... h5 {[%clk 0:01:03.4]} 15. Nd4 {[%clk 0:01:56.6]}
15... Nc5 {[%clk 0:00:35.4]} 16. Qe2 {[%clk 0:01:55.9]} 16... Nxd3+ {[%clk
0:00:33.3]} 17. cxd3 {[%clk 0:01:56.4]} 17... Qc5 {[%clk 0:00:25.2]} 18. g4
{[%clk 0:01:51]} 18... hxg4 {[%clk 0:00:25.6]} 19. h5 {[%clk 0:01:51.4]} 19...
Qd5 {[%clk 0:00:20.8]} 20. Rg1 {[%clk 0:01:25.8]} 20... gxh5 {[%clk 0:00:20.4]}
21. Rxg4+ {[%clk 0:01:25.6]} 21... hxg4 {[%clk 0:00:20.9]} 22. Qxg4+ {[%clk
0:01:26]} 22... Kh7 {[%clk 0:00:21.4]} 23. O-O-O {[%clk 0:01:26.8]} 23... Rg8
{[%clk 0:00:12.8]} 24. Qh5+ {[%clk 0:01:13.5]} 24... Kg7 {[%clk 0:00:13.6]} 25.
Rg1+ {[%clk 0:01:12.4]} 25... Kf8 {[%clk 0:00:15]} 26. Qh6+ {[%clk 0:01:13.7]}
26... Ke8 {[%clk 0:00:16.3]} 27. Rxg8+ {[%clk 0:01:14.5]} 27... Kd7 {[%clk
0:00:18.2]} 28. exd6 {[%clk 0:00:59.5]} 28... Bxd6 {[%clk 0:00:14.3]} 29. Qf6
{[%clk 0:00:55.3]} 29... Ba3+ {[%clk 0:00:08.8]} 30. Kb1 {[%clk 0:00:53.4]}
30... Qh1+ {[%clk 0:00:08.8]} 31. Kc2 {[%clk 0:00:53.3]} 31... Kc7 {[%clk
0:00:03]} 1-0

[Event "*** Titled Tuesday Blitz"]
[Site "Chess.com"]
[Date "2019.07.02"]
[Round "3"]
[White "Alliswell998"]
[Black "TheBigBadChessDad"]
[Result "0-1"]
[WhiteElo "2385"]
[BlackElo "2282"]
[TimeControl "180+2"]
[EndTime "13:39:19 PDT"]
[Termination "TheBigBadChessDad won by resignation"]

1. e4 {[%clk 0:03:01.9]} 1... e5 {[%clk 0:03:00.8]} 2. Nf3 {[%clk 0:03:02.8]}
2... Nf6 {[%clk 0:03:01.8]} 3. d4 {[%clk 0:03:03.4]} 3... Nxe4 {[%clk
0:03:02.2]} 4. Bd3 {[%clk 0:03:03.1]} 4... d5 {[%clk 0:03:03.2]} 5. Nxe5 {[%clk
0:03:04.7]} 5... Nd7 {[%clk 0:03:04.8]} 6. Nd2 {[%clk 0:03:01.4]} 6... Nxd2
{[%clk 0:02:56.2]} 7. Bxd2 {[%clk 0:02:57.9]} 7... Nxe5 {[%clk 0:02:57.2]} 8.
dxe5 {[%clk 0:02:59.8]} 8... Bc5 {[%clk 0:02:50.2]} 9. O-O {[%clk 0:02:58.4]}
9... O-O {[%clk 0:02:49.9]} 10. Kh1 {[%clk 0:02:59.2]} 10... f5 {[%clk 0:02:45]}
11. exf6 {[%clk 0:02:54.9]} 11... Qxf6 {[%clk 0:02:41.7]} 12. Qh5 {[%clk
0:02:52.4]} 12... Bf5 {[%clk 0:02:39.9]} 13. Bg5 {[%clk 0:02:44.8]} 13... Qxb2
{[%clk 0:02:23]} 14. Be7 {[%clk 0:02:14.5]} 14... g6 {[%clk 0:02:09.3]} 15. Qg5
{[%clk 0:02:00.6]} 15... Bxd3 {[%clk 0:01:54.3]} 16. Qxd5+ {[%clk 0:01:57]}
16... Rf7 {[%clk 0:01:50.7]} 17. Rfb1 {[%clk 0:01:38.8]} 17... Qd4 {[%clk
0:01:21.3]} 18. Qxc5 {[%clk 0:01:34]} 18... Qxc5 {[%clk 0:01:21]} 19. Bxc5
{[%clk 0:01:35.9]} 19... Bxc2 {[%clk 0:01:14.3]} 20. Rxb7 {[%clk 0:01:37.4]}
20... a5 {[%clk 0:01:11.3]} 21. Rc1 {[%clk 0:01:33.4]} 21... Be4 {[%clk
0:01:07.8]} 22. Rb3 {[%clk 0:01:27.9]} 22... Bd5 {[%clk 0:01:05.9]} 23. Rb2
{[%clk 0:01:23.6]} 23... a4 {[%clk 0:01:07]} 24. a3 {[%clk 0:01:21.5]} 24... Re8
{[%clk 0:00:52.8]} 25. Be3 {[%clk 0:01:19.3]} 25... c6 {[%clk 0:00:49.4]} 26.
Rb4 {[%clk 0:01:18.6]} 26... Ra8 {[%clk 0:00:49.5]} 27. h4 {[%clk 0:01:17.9]}
27... h5 {[%clk 0:00:41.8]} 28. Kh2 {[%clk 0:01:17.9]} 28... Re7 {[%clk
0:00:29.2]} 29. Rcb1 {[%clk 0:01:05.6]} 29... Re4 {[%clk 0:00:29]} 30. Kg3
{[%clk 0:01:01.5]} 30... Rxb4 {[%clk 0:00:28.6]} 31. Rxb4 {[%clk 0:01:03.4]}
31... Kf7 {[%clk 0:00:28.6]} 32. Rb7+ {[%clk 0:01:03.4]} 32... Ke6 {[%clk
0:00:29.6]} 33. Rg7 {[%clk 0:01:01.3]} 33... Be4 {[%clk 0:00:24.2]} 34. f3
{[%clk 0:00:59.9]} 34... Bf5 {[%clk 0:00:25]} 35. Kf4 {[%clk 0:00:59]} 35... Bc2
{[%clk 0:00:18]} 36. Bd2 {[%clk 0:00:54]} 36... c5 {[%clk 0:00:16.9]} 37. Rxg6+
{[%clk 0:00:50.9]} 37... Bxg6 {[%clk 0:00:16.4]} 0-1

[Event "*** Titled Tuesday Blitz"]
[Site "Chess.com"]
[Date "2019.07.02"]
[Round "3"]
[White "benhal"]
[Black "csati17"]
[Result "1-0"]
[WhiteElo "2384"]
[BlackElo "2526"]
[TimeControl "180+2"]
[EndTime "13:39:22 PDT"]
[Termination "benhal won by resignation"]

1. Nf3 {[%clk 0:03:01.9]} 1... d5 {[%clk 0:02:59]} 2. g3 {[%clk 0:02:59]} 2...
Nf6 {[%clk 0:02:59.3]} 3. Bg2 {[%clk 0:02:59.1]} 3... Bg4 {[%clk 0:03:00.4]} 4.
c4 {[%clk 0:02:59.8]} 4... c6 {[%clk 0:03:00.8]} 5. Ne5 {[%clk 0:03:00.7]} 5...
Be6 {[%clk 0:02:56.7]} 6. cxd5 {[%clk 0:03:02.2]} 6... Bxd5 {[%clk 0:02:57.2]}
7. Nf3 {[%clk 0:03:03.8]} 7... Nbd7 {[%clk 0:02:57.3]} 8. Nc3 {[%clk 0:03:04.8]}
8... e5 {[%clk 0:02:57.3]} 9. Nxd5 {[%clk 0:02:58]} 9... cxd5 {[%clk 0:02:59.2]}
10. O-O {[%clk 0:02:55.4]} 10... e4 {[%clk 0:02:47.9]} 11. Nd4 {[%clk
0:02:50.7]} 11... Qb6 {[%clk 0:02:44.2]} 12. Nb3 {[%clk 0:02:49.6]} 12... Nc5
{[%clk 0:02:25.9]} 13. Nxc5 {[%clk 0:02:40.1]} 13... Bxc5 {[%clk 0:02:26.6]} 14.
b4 {[%clk 0:02:35.8]} 14... Bd4 {[%clk 0:02:23.9]} 15. Rb1 {[%clk 0:02:35]}
15... O-O {[%clk 0:02:24.5]} 16. e3 {[%clk 0:02:30.5]} 16... Be5 {[%clk
0:02:24.9]} 17. d3 {[%clk 0:02:20.1]} 17... Rac8 {[%clk 0:02:11.9]} 18. dxe4
{[%clk 0:01:58.7]} 18... dxe4 {[%clk 0:02:13.8]} 19. Bb2 {[%clk 0:01:59.5]}
19... Bxb2 {[%clk 0:02:09.1]} 20. Rxb2 {[%clk 0:02:01.4]} 20... Rfd8 {[%clk
0:02:06.7]} 21. Rd2 {[%clk 0:01:59.4]} 21... Rxd2 {[%clk 0:01:54.9]} 22. Qxd2
{[%clk 0:02:01.3]} 22... g6 {[%clk 0:01:49.4]} 23. a3 {[%clk 0:01:56]} 23... Rd8
{[%clk 0:01:42.1]} 24. Qb2 {[%clk 0:01:56.5]} 24... Kg7 {[%clk 0:01:29.7]} 25.
Bxe4 {[%clk 0:01:50.1]} 25... a5 {[%clk 0:01:18.8]} 26. Bf3 {[%clk 0:01:47.7]}
26... h6 {[%clk 0:00:45.1]} 27. Kg2 {[%clk 0:01:39.1]} 27... Rd3 {[%clk
0:00:41]} 28. Rc1 {[%clk 0:01:35.2]} 28... axb4 {[%clk 0:00:34]} 29. axb4 {[%clk
0:01:34.8]} 29... h5 {[%clk 0:00:25.5]} 30. h4 {[%clk 0:01:32.6]} 30... Rd6
{[%clk 0:00:10.8]} 31. Rc8 {[%clk 0:01:30.3]} 31... Qb5 {[%clk 0:00:09]} 32. Qc3
{[%clk 0:01:24]} 32... Re6 {[%clk 0:00:09.6]} 33. Rc5 {[%clk 0:01:22.1]} 33...
Qd7 {[%clk 0:00:10]} 34. Rc7 {[%clk 0:01:19.7]} 34... Qa4 {[%clk 0:00:10.2]} 35.
Rxb7 {[%clk 0:01:20]} 35... Kh6 {[%clk 0:00:07.6]} 36. Rxf7 {[%clk 0:01:18.5]}
36... Qa6 {[%clk 0:00:08.3]} 37. b5 {[%clk 0:01:16.4]} 37... Qb6 {[%clk
0:00:09.3]} 38. Qc8 {[%clk 0:01:12]} 38... Ne8 {[%clk 0:00:10.5]} 39. Bc6 {[%clk
0:01:06.1]} 1-0

[Event "*** Titled Tuesday Blitz"]
[Site "Chess.com"]
[Date "2019.07.02"]
[Round "3"]
[White "rasmussvane"]
[Black "ChainsOfFantasia"]
[Result "1-0"]
[WhiteElo "2884"]
[BlackElo "2462"]
[TimeControl "180+2"]
[EndTime "13:39:24 PDT"]
[Termination "rasmussvane won by resignation"]

1. Nf3 {[%clk 0:03:01.9]} 1... Nf6 {[%clk 0:03:00.6]} 2. c4 {[%clk 0:03:02.3]}
2... e6 {[%clk 0:03:02.5]} 3. g3 {[%clk 0:03:03]} 3... d5 {[%clk 0:03:04]} 4.
Bg2 {[%clk 0:03:04.1]} 4... Be7 {[%clk 0:03:05.5]} 5. O-O {[%clk 0:03:05.2]}
5... O-O {[%clk 0:03:06.9]} 6. Ne5 {[%clk 0:03:05.7]} 6... Nbd7 {[%clk
0:03:04.2]} 7. d4 {[%clk 0:03:06.6]} 7... c6 {[%clk 0:03:00.3]} 8. Nxd7 {[%clk
0:03:05.9]} 8... Qxd7 {[%clk 0:02:57.6]} 9. Qc2 {[%clk 0:02:48]} 9... b6 {[%clk
0:02:57.6]} 10. Rd1 {[%clk 0:02:49]} 10... Bb7 {[%clk 0:02:58.4]} 11. b3 {[%clk
0:02:46.4]} 11... Rac8 {[%clk 0:02:58.1]} 12. Bb2 {[%clk 0:02:47.6]} 12... Rfd8
{[%clk 0:02:57.6]} 13. Nc3 {[%clk 0:02:47.7]} 13... Qe8 {[%clk 0:02:56]} 14. e4
{[%clk 0:02:45.6]} 14... c5 {[%clk 0:02:43.3]} 15. e5 {[%clk 0:02:20.8]} 15...
Nd7 {[%clk 0:02:02.5]} 16. cxd5 {[%clk 0:02:21.3]} 16... cxd4 {[%clk 0:02:01.1]}
17. Rxd4 {[%clk 0:02:22.9]} 17... Nxe5 {[%clk 0:02:01.8]} 18. Re1 {[%clk
0:02:04.7]} 18... Bf6 {[%clk 0:01:46.8]} 19. Qd1 {[%clk 0:01:05.6]} 19... exd5
{[%clk 0:01:01.2]} 20. Nxd5 {[%clk 0:00:50.2]} 20... Bxd5 {[%clk 0:01:01]} 21.
Rxd5 {[%clk 0:00:50.7]} 21... Rxd5 {[%clk 0:00:56.3]} 22. Bxd5 {[%clk
0:00:52.6]} 22... Rd8 {[%clk 0:00:51.3]} 23. Bxe5 {[%clk 0:00:35.5]} 23... Bxe5
{[%clk 0:00:49.5]} 24. f4 {[%clk 0:00:16.5]} 24... Bd4+ {[%clk 0:00:33.2]} 25.
Kg2 {[%clk 0:00:17.8]} 25... Be3 {[%clk 0:00:28.9]} 26. Qf3 {[%clk 0:00:18.1]}
26... Qb5 {[%clk 0:00:13.6]} 27. Bc4 {[%clk 0:00:18.9]} 27... Rd2+ {[%clk
0:00:11.4]} 28. Kh1 {[%clk 0:00:20.1]} 28... Qh5 {[%clk 0:00:05.5]} 29. Qa8+
{[%clk 0:00:16.4]} 1-0

[Event "*** Titled Tuesday Blitz"]
[Site "Chess.com"]
[Date "2019.07.02"]
[Round "3"]
[White "pheonixking2000"]
[Black "VladDobrov"]
[Result "0-1"]
[WhiteElo "2680"]
[BlackElo "2844"]
[TimeControl "180+2"]
[EndTime "13:39:28 PDT"]
[Termination "VladDobrov won by checkmate"]

1. d4 {[%clk 0:03:01.9]} 1... Nf6 {[%clk 0:03:00.1]} 2. c4 {[%clk 0:03:02.8]}
2... c5 {[%clk 0:03:00.6]} 3. d5 {[%clk 0:03:03.7]} 3... e6 {[%clk 0:03:01.8]}
4. Nc3 {[%clk 0:03:04.6]} 4... exd5 {[%clk 0:03:03.4]} 5. cxd5 {[%clk
0:03:05.5]} 5... Bd6 {[%clk 0:03:05]} 6. e4 {[%clk 0:03:05.5]} 6... O-O {[%clk
0:03:03.5]} 7. Bd3 {[%clk 0:03:00.9]} 7... Re8 {[%clk 0:02:46.7]} 8. Nf3 {[%clk
0:03:01.5]} 8... Bc7 {[%clk 0:02:25.3]} 9. O-O {[%clk 0:03:02.2]} 9... d6 {[%clk
0:02:26.7]} 10. Bg5 {[%clk 0:03:03.4]} 10... a6 {[%clk 0:02:27.3]} 11. e5 {[%clk
0:03:00.2]} 11... dxe5 {[%clk 0:02:26.6]} 12. Ne4 {[%clk 0:02:58.7]} 12... Nbd7
{[%clk 0:02:27.7]} 13. d6 {[%clk 0:02:59.8]} 13... Ba5 {[%clk 0:02:25.3]} 14.
Qc2 {[%clk 0:02:16.3]} 14... h6 {[%clk 0:02:11.6]} 15. Bh4 {[%clk 0:02:15.5]}
15... b6 {[%clk 0:02:09.6]} 16. Rfd1 {[%clk 0:02:07]} 16... Bb7 {[%clk
0:02:09.3]} 17. Nxf6+ {[%clk 0:02:05.8]} 17... Nxf6 {[%clk 0:02:07.8]} 18. d7
{[%clk 0:02:07]} 18... Re7 {[%clk 0:01:56.7]} 19. Bxf6 {[%clk 0:02:05.6]} 19...
gxf6 {[%clk 0:01:58.6]} 20. Bf5 {[%clk 0:02:01.6]} 20... Qc7 {[%clk 0:01:51]}
21. a3 {[%clk 0:01:45.1]} 21... b5 {[%clk 0:01:09.2]} 22. Qe2 {[%clk 0:01:35.1]}
22... Rd8 {[%clk 0:01:05.2]} 23. Nh4 {[%clk 0:01:34.7]} 23... e4 {[%clk
0:00:51.1]} 24. Qh5 {[%clk 0:01:23.6]} 24... Qf4 {[%clk 0:00:50.3]} 25. Bg4
{[%clk 0:00:45.7]} 25... e3 {[%clk 0:00:45.2]} 26. fxe3 {[%clk 0:00:43.7]} 26...
Qxe3+ {[%clk 0:00:45.1]} 27. Kh1 {[%clk 0:00:45.3]} 27... Re5 {[%clk 0:00:18.6]}
28. Nf5 {[%clk 0:00:39.5]} 28... Bxg2+ {[%clk 0:00:19.4]} 29. Kxg2 {[%clk
0:00:38.4]} 29... Qe4+ {[%clk 0:00:20.8]} 30. Kh3 {[%clk 0:00:34.8]} 30... Rxf5
{[%clk 0:00:20.1]} 31. Qxf5 {[%clk 0:00:33.7]} 31... Qe3+ {[%clk 0:00:21.2]} 32.
Qf3 {[%clk 0:00:33.6]} 32... Qe5 {[%clk 0:00:21.4]} 33. Bf5 {[%clk 0:00:33.2]}
33... Bc7 {[%clk 0:00:22.2]} 34. Re1 {[%clk 0:00:26.6]} 34... Qxh2+ {[%clk
0:00:22.7]} 35. Kg4 {[%clk 0:00:23.1]} 35... h5# {[%clk 0:00:24]} 0-1